bitfinex/quotes_BTCUSD_20250308
["timestamp","ask_amount","ask_price","bid_price","bid_amount"]
[1741465996233,0.011553,86552.0,86547.0,0.12373445]
[1741465996474,0.011553,86554.0,86547.0,0.27394045]
[1741465996754,0.1389646,86565.0,86547.0,0.27394045]
[1741465996755,0.138636,86557.0,86551.0,0.011553]
[1741465996998,0.03704282,86558.0,86551.0,0.150198]
[1741465997234,0.150189,86557.0,86552.0,0.01168921]
[1741465997671,0.150189,86557.0,86551.0,0.150198]
[1741465997919,0.150189,86557.0,86553.0,0.01168518]
[1741465998173,0.150189,86557.0,86552.0,0.01168661]
[1741465998376,0.150189,86557.0,86554.0,0.01168375]
[1741465998531,0.150189,86557.0,86553.0,0.01168518]
[1741465998729,0.001,86554.0,86551.0,0.150198]
[1741465999098,0.150189,86557.0,86552.0,0.01168661]
[1741465999391,0.152189,86557.0,86552.0,0.01168661]
[1741465999621,0.152189,86557.0,86553.0,0.01168518]
[1741466000158,0.150189,86557.0,86554.0,0.01168375]
[1741466000378,0.152189,86557.0,86551.0,0.150198]
[1741466000599,0.152189,86557.0,86555.0,0.01168232]
[1741466000822,0.152189,86557.0,86551.0,0.150198]
[1741466000937,0.152189,86557.0,86556.0,0.0116809]
[1741466001179,0.002,86557.0,86554.0,0.011553]
[1741466001385,0.002,86557.0,86556.0,0.0116809]
[1741466001586,0.02566062,86558.0,86555.0,0.01167861]
[1741466001787,0.02566062,86558.0,86556.0,0.01167718]
[1741466002020,0.002,86557.0,86556.0,0.01167718]
[1741466002226,0.002,86557.0,86554.0,0.060653]
[1741466002441,0.002,86557.0,86556.0,0.01167718]
[1741466002650,0.002,86557.0,86555.0,0.01167861]
[1741466002651,0.011553,86556.0,86555.0,0.01167861]
[1741466002856,0.011553,86556.0,86554.0,0.0491]
[1741466003291,0.150193,86555.0,86554.0,0.0491]
[1741466005740,0.151193,86555.0,86554.0,0.0491]
[1741466006147,0.012553,86555.0,86554.0,0.0491]
[1741466006358,0.151193,86555.0,86554.0,0.0491]
[1741466007878,0.151193,86555.0,86554.0,0.06078004]
[1741466009146,0.151193,86555.0,86554.0,0.0491]
[1741466009438,0.151193,86555.0,86547.0,0.0003396]
[1741466009439,0.138648,86550.0,86547.0,0.0003396]
[1741466009655,0.011554,86548.0,86547.0,0.0003396]
[1741466009857,0.011554,86548.0,86547.0,0.1123396]
[1741466011560,0.011554,86548.0,86547.0,0.1133396]
[1741466014163,0.150202,86550.0,86547.0,0.1133396]
[1741466015239,0.150202,86550.0,86547.0,0.1123396]
[1741466015683,0.011554,86548.0,86547.0,0.1123396]
[1741466018101,0.011553,86555.0,86548.0,0.094054]
[1741466018373,0.011553,86555.0,86549.0,0.011554]
[1741466018530,0.138643,86553.0,86548.0,0.094054]
[1741466019599,0.138643,86553.0,86549.0,0.011554]
[1741466020610,0.139643,86553.0,86549.0,0.011554]
[1741466020827,0.001,86553.0,86549.0,0.011554]
[1741466021145,0.011553,86554.0,86549.0,0.011554]
[1741466021355,0.001,86553.0,86549.0,0.011554]
[1741466022248,0.011553,86554.0,86549.0,0.011554]
[1741466022858,0.011553,86554.0,86550.0,0.01168732]
[1741466024081,0.001,86554.0,86550.0,0.02324132]
[1741466024499,0.15019,86557.0,86551.0,0.011553]
[1741466024705,0.02566062,86558.0,86553.0,0.011553]
[1741466025061,0.03721262,86558.0,86554.0,0.01068161]
[1741466025268,0.138636,86557.0,86552.0,0.138644]
[1741466025698,0.140636,86557.0,86553.0,0.01162054]
[1741466025897,0.138636,86557.0,86553.0,0.01162054]
[1741466026101,0.03721262,86558.0,86553.0,0.01162054]
[1741466026399,0.03721262,86558.0,86553.0,0.02317354]
[1741466026632,0.02566062,86558.0,86553.0,0.16181454]
[1741466026849,0.02566062,86558.0,86555.0,0.011553]
[1741466027338,0.02766062,86558.0,86556.0,0.01161625]
[1741466027533,0.02566062,86558.0,86556.0,0.01161625]
[1741466027951,0.02766062,86558.0,86556.0,0.01161625]
[1741466028746,0.02566062,86558.0,86556.0,0.01161625]
[1741466029200,0.02766062,86558.0,86556.0,0.01161625]
[1741466029816,0.16629562,86558.0,86556.0,0.01161625]
[1741466030030,0.17784762,86558.0,86556.0,0.01161625]
[1741466030252,0.17784762,86558.0,86552.0,0.011553]
[1741466030461,0.17784762,86558.0,86557.0,0.01161232]
[1741466030675,0.17784762,86558.0,86552.0,0.011553]
[1741466030894,0.17584762,86558.0,86557.0,0.01161232]
[1741466031105,0.03721262,86558.0,86557.0,0.01161232]
[1741466031316,0.03921262,86558.0,86553.0,0.150196]
[1741466031527,0.17584762,86558.0,86557.0,0.01161232]
[1741466031735,0.17584762,86558.0,86552.0,0.011553]
[1741466031937,0.17784762,86558.0,86557.0,0.01161232]
[1741466032149,0.17584762,86558.0,86552.0,0.150196]
[1741466032269,0.03721262,86558.0,86557.0,0.01161232]
[1741466032468,0.02766062,86558.0,86554.0,0.138641]
[1741466032719,0.02766062,86558.0,86557.0,0.01161232]
[1741466032922,0.02766062,86558.0,86554.0,0.150194]
[1741466033136,0.02766062,86558.0,86557.0,0.01161232]
[1741466033352,0.02766062,86558.0,86557.0,0.0753]
[1741466033571,0.02766062,86558.0,86557.0,0.08691232]
[1741466034127,0.02966062,86558.0,86557.0,0.08691232]
[1741466036834,0.16829562,86558.0,86557.0,0.08691232]
[1741466038300,0.02966062,86558.0,86557.0,0.08691232]
[1741466039258,0.02966062,86558.0,86557.0,0.19883232]
[1741466042297,0.04121262,86558.0,86557.0,0.19883232]
[1741466042516,0.04121262,86558.0,86557.0,0.01161232]
[1741466042939,0.011553,86554.0,86553.0,0.0003396]
[1741466043143,0.150194,86554.0,86553.0,0.0003396]
[1741466044849,0.151194,86554.0,86553.0,0.0003396]
[1741466047282,0.152194,86554.0,86553.0,0.0003396]
[1741466064022,0.1523638,86554.0,86553.0,0.0003396]
[1741466068107,0.1523638,86554.0,86553.0,0.0756396]
[1741466068976,0.1523638,86554.0,86553.0,0.0003396]
[1741466085506,0.138638,86556.0,86553.0,0.0003396]
[1741466085703,0.138641,86554.0,86553.0,0.0003396]
[1741466085908,0.150194,86554.0,86553.0,0.0003396]
[1741466086889,0.2538863,86557.0,86553.0,0.0003396]
[1741466087093,0.002,86556.0,86553.0,0.0003396]
[1741466087299,0.450194,86554.0,86553.0,0.0003396]
[1741466087497,0.4503639,86554.0,86553.0,0.0003396]
[1741466087916,0.4513639,86554.0,86553.0,0.0003396]
[1741466089456,0.4523639,86554.0,86553.0,0.0003396]
[1741466089668,1.3397029,86554.0,86553.0,0.0003396]
[1741466089973,1.4060409,86554.0,86553.0,0.0003396]
[1741466090131,1.11175597,86554.0,86553.0,0.0003396]
[1741466090577,1.26194997,86554.0,86553.0,0.0003396]
[1741466091163,1.33374997,86554.0,86553.0,0.0003396]
[1741466095672,2.22024997,86554.0,86553.0,0.0003396]
[1741466095904,2.23479082,86554.0,86553.0,0.0003396]
[1741466096778,2.23279082,86554.0,86553.0,0.0003396]
[1741466096983,2.23479082,86554.0,86553.0,0.0003396]
[1741466097192,2.22424997,86554.0,86553.0,0.0003396]
[1741466097410,2.15244997,86554.0,86553.0,0.0003396]
[1741466101280,1.86071297,86554.0,86553.0,0.0003396]
[1741466101596,2.72621297,86554.0,86553.0,0.0003396]
[1741466101815,5.39188597,86554.0,86553.0,0.0003396]
[1741466102044,4.50538597,86554.0,86553.0,0.0003396]
[1741466102259,5.39188597,86554.0,86553.0,0.0003396]
[1741466102734,5.01238597,86554.0,86553.0,0.0003396]
[1741466103572,5.19159297,86554.0,86553.0,0.0003396]
[1741466105889,0.150205,86548.0,86547.0,0.0003396]
[1741466106092,1.557469,86548.0,86547.0,0.0003396]
[1741466106263,1.55886,86548.0,86547.0,0.0003396]
[1741466107039,1.498087,86548.0,86547.0,0.0003396]
[1741466107301,1.269281,86548.0,86547.0,0.0003396]
[1741466108087,2.760281,86548.0,86547.0,0.0003396]
[1741466108705,0.450217,86541.0,86540.0,0.0003396]
[1741466108975,3.530366,86541.0,86540.0,0.0003396]
[1741466109183,3.091889,86541.0,86540.0,0.0003396]
[1741466109465,3.025459,86541.0,86540.0,0.0003396]
[1741466109675,1.649957,86541.0,86540.0,0.0003396]
[1741466109942,1.460251,86541.0,86540.0,0.0003396]
[1741466111018,0.451217,86541.0,86540.0,0.1272396]
[1741466111797,0.151217,86541.0,86540.0,0.1272396]
[1741466112276,0.001,86541.0,86540.0,0.14056647]
[1741466113019,0.011554,86544.0,86541.0,0.1269]
[1741466113247,0.1036468,86545.0,86543.0,0.0784]
[1741466113449,0.1036468,86545.0,86544.0,0.09171799]
[1741466113653,0.1036468,86545.0,86544.0,0.10327199]
[1741466113853,0.1036468,86545.0,86544.0,0.09171799]
[1741466114089,0.1152008,86545.0,86544.0,0.09171799]
[1741466114254,0.1152008,86545.0,86544.0,0.1902]
[1741466114463,0.1152008,86545.0,86544.0,0.20350908]
[1741466114879,0.1152008,86545.0,86544.0,0.09170908]
[1741466115058,0.1152008,86545.0,86544.0,0.0784]
[1741466115910,0.1162008,86545.0,86544.0,0.0784]
[1741466116120,0.1172008,86545.0,86544.0,0.0784]
[1741466116824,0.1172008,86545.0,86544.0,0.09170908]
[1741466117918,0.013554,86545.0,86544.0,0.09170908]
[1741466118736,0.012554,86545.0,86544.0,0.09170908]
[1741466119047,0.011554,86545.0,86544.0,0.09170908]
[1741466119836,0.011554,86549.0,86545.0,0.0456]
[1741466120078,0.150204,86549.0,86546.0,0.0754]
[1741466120247,0.150204,86549.0,86546.0,0.08870581]
[1741466120851,0.138652,86547.0,86546.0,0.08870581]
[1741466121055,0.011554,86548.0,86546.0,0.08870581]
[1741466121660,0.150206,86547.0,86546.0,0.08870581]
[1741466122238,0.011554,86548.0,86546.0,0.08870581]
[1741466122790,0.150206,86547.0,86546.0,0.08870581]
[1741466123011,0.011554,86547.0,86546.0,0.08870581]
[1741466123396,0.011554,86548.0,86546.0,0.08870581]
[1741466123832,0.011554,86548.0,86547.0,0.11176]
[1741466124028,0.011554,86548.0,86547.0,0.19106]
[1741466124270,0.011554,86548.0,86547.0,0.20436418]
[1741466124732,0.011553,86553.0,86548.0,0.0793]
[1741466125153,0.011553,86552.0,86549.0,0.01330091]
[1741466125342,0.011553,86552.0,86550.0,0.0793]
[1741466125791,0.011553,86552.0,86550.0,0.09259928]
[1741466126295,0.138643,86553.0,86550.0,0.09259928]
[1741466126531,0.150196,86553.0,86550.0,0.09259928]
[1741466126734,0.011553,86552.0,86550.0,0.09259928]
[1741466126970,0.150199,86551.0,86550.0,0.09259928]
[1741466130143,0.151199,86551.0,86550.0,0.09259928]
[1741466135286,0.001,86551.0,86550.0,0.09259928]
[1741466136083,0.012553,86551.0,86550.0,0.09259928]
[1741466137324,0.151199,86551.0,86550.0,0.09259928]
[1741466139395,0.012553,86551.0,86550.0,0.09259928]
[1741466140844,0.001,86551.0,86550.0,0.09259928]
[1741466149150,0.0011699,86551.0,86550.0,0.09259928]
[1741466154557,0.0011699,86551.0,86550.0,0.10415328]
[1741466154773,0.0011699,86551.0,86550.0,0.15155328]
[1741466155173,0.0011699,86551.0,86550.0,0.13999928]
[1741466155574,0.0001699,86551.0,86550.0,0.15155328]
[1741466156003,0.011553,86557.0,86550.0,0.15155328]
[1741466156363,0.011553,86555.0,86550.0,0.15155328]
[1741466157459,0.150194,86554.0,86550.0,0.13999928]
[1741466157866,0.011553,86551.0,86550.0,0.13999928]
[1741466158107,0.138645,86552.0,86550.0,0.25167928]
[1741466159072,0.150198,86552.0,86550.0,0.25167928]
[1741466160245,0.011553,86557.0,86550.0,0.25167928]
[1741466160446,0.150195,86554.0,86550.0,0.25167928]
[1741466160661,0.138644,86552.0,86550.0,0.25167928]
[1741466160859,0.150197,86552.0,86550.0,0.25167928]
[1741466161509,0.011553,86551.0,86550.0,0.25167928]
[1741466161708,0.011553,86551.0,86550.0,0.23838]
[1741466161915,0.011553,86551.0,86550.0,0.24978352]
[1741466162632,0.1503669,86552.0,86550.0,0.24978352]
[1741466163051,0.011553,86551.0,86550.0,0.12308352]
[1741466165699,0.011553,86551.0,86550.0,0.01140352]
[1741466165898,0.011553,86551.0,86542.0,0.5427398]
[1741466166150,0.011553,86551.0,86542.0,0.0003398]
[1741466166151,0.150213,86543.0,86542.0,0.0003398]
[1741466167724,0.150213,86543.0,86542.0,0.0033398]
[1741466168738,0.150213,86543.0,86542.0,0.0063398]
[1741466170414,0.150213,86543.0,86542.0,0.0033398]
[1741466170640,0.150213,86543.0,86542.0,0.0003398]
[1741466170882,0.150213,86543.0,86542.0,0.0033398]
[1741466172848,0.739089,86543.0,86542.0,0.0033398]
[1741466173393,0.739089,86543.0,86542.0,0.0013398]
[1741466173606,0.739089,86543.0,86542.0,0.0003398]
[1741466174038,0.739089,86543.0,86542.0,0.0013398]
[1741466174501,0.739089,86543.0,86542.0,0.0003398]
[1741466174926,0.740089,86543.0,86542.0,0.0003398]
[1741466176331,1.06319439,86543.0,86542.0,0.0003398]
[1741466182985,0.47431839,86543.0,86542.0,0.0003398]
[1741466183325,1.10337039,86543.0,86542.0,0.0003398]
[1741466183563,0.47431839,86543.0,86542.0,0.0003398]
[1741466183771,1.10337039,86543.0,86542.0,0.0003398]
[1741466184035,0.47431839,86543.0,86542.0,0.0003398]
[1741466184215,1.10468939,86543.0,86542.0,0.0003398]
[1741466191717,1.04477739,86543.0,86542.0,0.0003398]
[1741466192006,1.00999239,86543.0,86542.0,0.0003398]
[1741466193690,0.47431839,86543.0,86542.0,0.0003398]
[1741466194841,0.57703939,86543.0,86542.0,0.0003398]
[1741466195727,0.47431839,86543.0,86542.0,0.0003398]
[1741466201236,0.49244991,86543.0,86542.0,0.0003398]
[1741466204584,0.32051967,86543.0,86542.0,0.0003398]
[1741466204802,0.33207367,86543.0,86542.0,0.0003398]
[1741466205648,0.46834452,86543.0,86542.0,0.0003398]
[1741466210643,0.46834452,86543.0,86542.0,0.0831398]
[1741466210848,0.16834452,86543.0,86542.0,0.0831398]
[1741466212210,0.16834452,86543.0,86542.0,0.1287398]
[1741466212613,0.150213,86543.0,86542.0,0.1287398]
[1741466215569,0.16834355,86543.0,86542.0,0.1287398]
[1741466215953,0.150213,86543.0,86542.0,0.1287398]
[1741466216155,0.16834354,86543.0,86542.0,0.1287398]
[1741466219772,0.16851344,86543.0,86542.0,0.140159]
[1741466222124,0.16851344,86543.0,86542.0,0.142159]
[1741466224122,0.16851344,86543.0,86542.0,0.096559]
[1741466224328,0.16851344,86543.0,86542.0,0.013759]
[1741466224686,0.16851344,86543.0,86542.0,0.0023398]
[1741466225171,0.16851344,86543.0,86542.0,0.0013398]
[1741466225735,0.16851344,86543.0,86542.0,0.0003398]
[1741466235922,0.02985444,86543.0,86534.0,0.05754714]
[1741466236123,0.150228,86535.0,86534.0,0.05754714]
[1741466237642,0.150228,86535.0,86534.0,0.06054714]
[1741466239001,0.150228,86535.0,86534.0,0.06354714]
[1741466239221,0.16835948,86535.0,86534.0,0.06354714]
[1741466243317,0.16835948,86535.0,86534.0,0.06388694]
[1741466243660,0.16835948,86535.0,86534.0,0.07531667]
[1741466245447,0.01813148,86535.0,86534.0,0.07531667]
[1741466246088,0.00021888,86543.0,86539.0,0.011555]
[1741466246288,0.00021888,86543.0,86536.0,0.011555]
[1741466246506,0.15043288,86543.0,86540.0,0.0114234]
[1741466246645,0.15043288,86543.0,86537.0,0.011555]
[1741466246833,0.15043288,86543.0,86541.0,0.01142157]
[1741466247033,0.15043288,86543.0,86537.0,0.011555]
[1741466247297,0.150217,86542.0,86537.0,0.011555]
[1741466247856,0.150217,86542.0,86538.0,0.01142479]
[1741466248654,0.150217,86542.0,86536.0,0.011555]
[1741466248853,0.150217,86542.0,86539.0,0.01142372]
[1741466249063,0.16834758,86542.0,86539.0,0.0826]
[1741466249265,0.16834758,86542.0,86540.0,0.01142264]
[1741466249691,0.01813058,86542.0,86541.0,0.011555]
[1741466249905,0.01813058,86542.0,86540.0,0.01142264]
[1741466250110,0.01813058,86542.0,86539.0,0.0826]
[1741466250357,0.01813058,86542.0,86541.0,0.01142157]
[1741466250556,0.01813058,86542.0,86540.0,0.01142264]
[1741466250771,0.01813058,86542.0,86541.0,0.01142157]
[1741466250971,0.01813058,86542.0,86541.0,0.15197657]
[1741466251304,0.01813058,86542.0,86541.0,0.140555]
[1741466251430,0.01813058,86542.0,86541.0,0.15197657]
[1741466252043,0.01813058,86542.0,86541.0,0.15297657]
[1741466254123,0.01813058,86542.0,86541.0,0.15397657]
[1741466254697,0.01830048,86542.0,86541.0,0.15397657]
[1741466258459,0.01830048,86542.0,86541.0,0.14242157]
[1741466259776,0.01830048,86542.0,86541.0,0.15397657]
[1741466261142,0.01830048,86542.0,86541.0,0.14242157]
[1741466262469,0.01830048,86542.0,86541.0,0.15397657]
[1741466272687,0.138649,86549.0,86541.0,0.15397657]
[1741466272899,0.01813064,86542.0,86541.0,0.15397657]
[1741466273346,0.011554,86546.0,86541.0,0.15397657]
[1741466273479,0.011554,86546.0,86541.0,0.15297657]
[1741466274672,0.150207,86547.0,86541.0,0.15197657]
[1741466274877,0.001,86546.0,86541.0,0.15197657]
[1741466275556,0.150207,86547.0,86541.0,0.15197657]
[1741466275897,0.01912979,86546.0,86541.0,0.15197657]
[1741466276306,0.01812979,86546.0,86541.0,0.15197657]
[1741466276530,0.01912979,86546.0,86541.0,0.15197657]
[1741466277004,0.01912979,86546.0,86542.0,0.011555]
[1741466277565,0.02012979,86546.0,86545.0,0.011554]
[1741466278032,0.02012979,86546.0,86545.0,0.0229668]
[1741466278201,0.150198,86552.0,86545.0,0.0229668]
[1741466278403,0.12467192,86554.0,86545.0,0.0229668]
[1741466278624,0.01813022,86546.0,86545.0,0.0229668]
[1741466278761,0.01913022,86546.0,86545.0,0.2371228]
[1741466278975,0.01813022,86546.0,86545.0,0.2826228]
[1741466279382,0.01913022,86546.0,86545.0,0.2826228]
[1741466279709,0.01830012,86546.0,86545.0,0.2826228]
[1741466280160,0.01830012,86546.0,86545.0,0.2846228]
[1741466287195,0.02985412,86546.0,86545.0,0.0134128]
[1741466287420,0.1503779,86546.0,86545.0,0.0134128]
[1741466288627,0.1503779,86546.0,86545.0,0.002]
[1741466290497,0.16850848,86546.0,86545.0,0.002]
[1741466291318,0.16850848,86546.0,86545.0,0.0023398]
[1741466306040,0.138664,86540.0,86539.0,0.06210852]
[1741466306249,0.138664,86540.0,86539.0,0.06216649]
[1741466306429,0.138664,86540.0,86539.0,0.07376651]
[1741466307054,0.150219,86540.0,86539.0,0.07376651]
[1741466307255,0.150219,86540.0,86539.0,0.07676651]
[1741466308389,0.150219,86540.0,86539.0,0.07976651]
[1741466309004,0.16834976,86540.0,86539.0,0.07976651]
[1741466310801,0.01813076,86540.0,86539.0,0.07976651]
[1741466314860,0.10350025,86543.0,86539.0,0.07976651]
[1741466315073,0.01813141,86540.0,86539.0,0.07976651]
[1741466315276,0.011555,86541.0,86539.0,0.07976651]
[1741466315980,0.011555,86541.0,86539.0,0.07676651]
[1741466316179,0.011555,86541.0,86539.0,0.07576651]
[1741466316405,0.011555,86540.0,86539.0,0.07876651]
[1741466316817,0.011555,86541.0,86539.0,0.07676651]
[1741466317010,0.138662,86542.0,86539.0,0.07710631]
[1741466317209,0.150217,86542.0,86539.0,0.01499779]
[1741466317411,0.011555,86541.0,86539.0,0.01499779]
[1741466317647,0.150219,86541.0,86539.0,0.01499779]
[1741466317910,0.011555,86540.0,86539.0,0.01199779]
[1741466318250,0.011555,86540.0,86539.0,0.01499779]
[1741466319266,0.011555,86540.0,86539.0,0.01799779]
[1741466320727,0.011555,86540.0,86539.0,0.01499779]
[1741466321808,0.011255,86540.0,86539.0,0.01499779]
[1741466321996,0.01813079,86541.0,86539.0,0.01799779]
[1741466322136,0.138656,86545.0,86539.0,0.01799779]
[1741466322366,0.01813146,86540.0,86539.0,0.01818946]
[1741466322566,0.138657,86544.0,86539.0,0.01799779]
[1741466322967,0.011555,86542.0,86539.0,0.01499779]
[1741466323171,0.011555,86542.0,86539.0,0.01199779]
[1741466323380,0.011554,86543.0,86539.0,0.01399779]
[1741466323802,0.011554,86543.0,86539.0,0.01199779]
[1741466324224,0.011554,86543.0,86539.0,0.01399779]
[1741466324429,0.011554,86543.0,86539.0,0.01199779]
[1741466325017,0.011554,86543.0,86539.0,0.01399779]
[1741466325463,0.02968459,86543.0,86539.0,0.01399779]
[1741466325719,0.02968459,86543.0,86539.0,0.01199779]
[1741466325970,0.01813059,86543.0,86539.0,0.01399779]
[1741466326147,0.01813059,86543.0,86539.0,0.02555279]
[1741466326574,0.01813059,86543.0,86539.0,0.02755279]
[1741466332116,0.01813059,86543.0,86539.0,0.01599779]
[1741466332362,0.011555,86540.0,86539.0,0.01599779]
[1741466332814,0.138663,86541.0,86539.0,0.01599779]
[1741466333293,0.02968459,86543.0,86539.0,0.01199779]
[1741466333707,0.02968459,86543.0,86539.0,0.01499779]
[1741466333918,0.02968459,86543.0,86539.0,0.01199779]
[1741466334111,0.02968459,86543.0,86539.0,0.09239779]
[1741466334230,0.01813059,86543.0,86539.0,0.09539779]
[1741466334427,0.01813059,86543.0,86539.0,0.09839779]
[1741466334830,0.01813059,86543.0,86539.0,0.10695279]
[1741466335033,0.01813059,86543.0,86539.0,0.10395279]
[1741466335325,0.01813059,86543.0,86539.0,0.10595279]
[1741466335789,0.01813059,86543.0,86540.0,0.138662]
[1741466336016,0.01813059,86543.0,86542.0,0.011555]
[1741466336249,0.01813059,86543.0,86541.0,0.02325875]
[1741466336476,0.01813059,86543.0,86542.0,0.01170267]
[1741466337101,0.01813059,86543.0,86539.0,0.09435277]
[1741466337334,0.1503789,86546.0,86539.0,0.09435277]
[1741466337335,0.133216,86546.0,86540.0,0.01370482]
[1741466337544,0.01813125,86543.0,86540.0,0.01170482]
[1741466337946,0.011554,86544.0,86542.0,0.002]
[1741466338117,0.011554,86544.0,86540.0,0.01370482]
[1741466338320,0.011554,86544.0,86543.0,0.0117016]
[1741466338689,0.011554,86544.0,86540.0,0.002]
[1741466338874,0.011554,86544.0,86543.0,0.0117016]
[1741466339107,0.011554,86544.0,86540.0,0.002]
[1741466339523,0.011554,86544.0,86541.0,0.01170375]
[1741466339744,0.150214,86543.0,86541.0,0.01170375]
[1741466339958,0.011555,86542.0,86541.0,0.01170375]
[1741466340340,0.011555,86542.0,86539.0,0.00039777]
[1741466340557,0.011555,86542.0,86541.0,0.01170375]
[1741466340785,0.0296857,86542.0,86541.0,0.002]
[1741466340962,0.0296857,86542.0,86541.0,0.01170375]
[1741466340963,0.0181307,86542.0,86541.0,0.01170375]
[1741466341167,0.0181307,86542.0,86539.0,0.00039777]
[1741466341416,0.0181307,86542.0,86541.0,0.01370375]
[1741466341616,0.0181307,86542.0,86541.0,0.002]
[1741466341852,0.0181307,86542.0,86541.0,0.01370375]
[1741466342664,0.0181307,86542.0,86541.0,0.01570375]
[1741466342803,0.0181307,86542.0,86541.0,0.01370375]
[1741466343688,0.0181307,86542.0,86541.0,0.01570375]
[1741466345170,0.0296857,86542.0,86541.0,0.01570375]
[1741466346946,0.0181307,86542.0,86541.0,0.14985875]
[1741466347153,0.0181307,86542.0,86541.0,0.28852075]
[1741466352239,0.1036468,86545.0,86544.0,0.150211]
[1741466352458,0.0001699,86546.0,86544.0,0.150211]
[1741466352459,0.0001699,86546.0,86544.0,0.21155185]
[1741466352703,0.0001699,86546.0,86545.0,0.15025646]
[1741466353014,0.0001699,86546.0,86545.0,0.16195304]
[1741466353214,0.0001699,86546.0,86545.0,0.54255304]
[1741466353419,0.0001699,86546.0,86545.0,0.70319777]
[1741466353716,0.0001699,86546.0,86545.0,0.70279143]
[1741466354533,0.0001699,86546.0,86545.0,0.70479143]
[1741466355069,0.01829824,86546.0,86545.0,0.70479143]
[1741466355268,0.01829824,86546.0,86545.0,0.70679143]
[1741466357073,0.01829824,86546.0,86545.0,1.00679143]
[1741466358116,0.01829824,86546.0,86545.0,1.00479143]
[1741466358498,0.01829824,86546.0,86545.0,1.01079143]
[1741466359496,0.01829824,86546.0,86545.0,1.00879143]
[1741466359691,0.01829824,86546.0,86545.0,1.01379143]
[1741466361941,0.2541526,86571.0,86545.0,1.01379143]
[1741466362100,0.2541526,86571.0,86563.0,0.011552]
[1741466362101,0.18782585,86571.0,86563.0,0.011552]
[1741466362306,0.011551,86568.0,86564.0,0.01167293]
[1741466362503,0.150171,86568.0,86564.0,0.01167293]
[1741466362714,0.150171,86568.0,86562.0,0.11124]
[1741466362915,0.150171,86568.0,86563.0,0.01167008]
[1741466363115,0.011551,86568.0,86563.0,0.01167008]
[1741466363752,0.011551,86568.0,86563.0,0.02322208]
[1741466365507,0.01812615,86567.0,86563.0,0.02322208]
[1741466366623,0.150168,86569.0,86563.0,0.02322208]
[1741466367189,0.150168,86569.0,86563.0,0.02422208]
[1741466367387,0.0001699,86568.0,86563.0,0.02422208]
[1741466368279,0.0001699,86568.0,86563.0,0.02322208]
[1741466369497,0.01812615,86567.0,86563.0,0.02322208]
[1741466370668,0.01812615,86567.0,86563.0,0.02422208]
[1741466370914,0.01812615,86567.0,86563.0,0.02522208]
[1741466371368,0.15674715,86567.0,86563.0,0.01367008]
[1741466371595,0.150175,86566.0,86563.0,0.01367008]
[1741466371820,0.01812615,86567.0,86563.0,0.01367008]
[1741466372053,0.01812615,86567.0,86563.0,0.02522208]
[1741466373619,0.01812615,86567.0,86563.0,0.02422208]
[1741466373832,0.01812615,86567.0,86563.0,0.02322208]
[1741466374120,0.01812615,86567.0,86563.0,0.02522208]
[1741466374321,0.01812615,86567.0,86563.0,0.02422208]
[1741466374908,0.01812615,86567.0,86563.0,0.02522208]
[1741466375131,0.15674715,86567.0,86563.0,0.01367008]
[1741466375341,0.16829815,86567.0,86563.0,0.01367008]
[1741466375903,0.01812615,86567.0,86563.0,0.01367008]
[1741466376985,0.01812615,86567.0,86563.0,0.02522208]
[1741466377533,0.01812615,86567.0,86564.0,0.011552]
[1741466377960,0.01804434,86567.0,86565.0,0.01166794]
[1741466380365,0.01804434,86567.0,86565.0,0.01266794]
[1741466380574,0.01804434,86567.0,86565.0,0.01366794]
[1741466381308,0.011551,86566.0,86565.0,0.01366794]
[1741466383100,0.011551,86566.0,86565.0,0.01266794]
[1741466384015,0.011551,86566.0,86565.0,0.01366794]
[1741466386102,0.16821734,86567.0,86565.0,0.01366794]
[1741466386994,0.01804434,86567.0,86565.0,0.01266794]
[1741466387148,0.01804434,86567.0,86565.0,0.01166794]
[1741466387361,0.01804434,86567.0,86565.0,0.01266794]
[1741466387567,0.01804434,86567.0,86565.0,0.001]
[1741466387790,0.01804434,86567.0,86566.0,0.01166686]
[1741466390593,0.01804434,86567.0,86566.0,0.01366686]
[1741466390754,0.01804434,86567.0,86566.0,0.002]
[1741466390950,0.01804434,86567.0,86566.0,0.01366686]
[1741466391130,0.01804434,86567.0,86566.0,0.002]
[1741466391324,0.01804434,86567.0,86566.0,0.01366686]
[1741466393044,0.01821424,86567.0,86566.0,0.01366686]
[1741466394078,0.02976524,86567.0,86566.0,0.01366686]
[1741466409323,0.13341204,86567.0,86566.0,0.01366686]
[1741466414835,0.1153677,86567.0,86566.0,0.01366686]
[1741466417164,0.0117209,86567.0,86566.0,0.01400666]
[1741466420048,0.02984785,86567.0,86566.0,0.01400666]
[1741466420162,0.08126983,86569.0,86566.0,0.01400666]
[1741466420384,0.01812695,86567.0,86566.0,0.01400666]
[1741466420596,0.02967795,86567.0,86566.0,0.01400666]
[1741466420812,0.011551,86567.0,86566.0,0.01400666]
[1741466421066,0.011551,86567.0,86566.0,0.0023398]
[1741466421766,0.0852778,86569.0,86566.0,0.0013398]
[1741466422003,0.777892,86568.0,86566.0,0.0013398]
[1741466422445,0.011551,86567.0,86566.0,0.0013398]
[1741466422927,0.011551,86567.0,86566.0,0.0023398]
[1741466423357,0.02967836,86567.0,86566.0,0.0023398]
[1741466423560,0.02967836,86567.0,86566.0,0.0013398]
[1741466424305,0.02967836,86567.0,86566.0,0.0023398]
[1741466424585,0.011551,86567.0,86566.0,0.0023398]
[1741466426262,0.011551,86567.0,86566.0,0.0003398]
[1741466427807,0.02967836,86567.0,86566.0,0.0003398]
[1741466429467,0.02984826,86567.0,86566.0,0.0003398]
[1741466430419,0.01829726,86567.0,86566.0,0.0003398]
[1741466430655,0.01829726,86567.0,86566.0,0.0118908]
[1741466431620,0.01829726,86567.0,86566.0,0.0237144]
[1741466431913,0.01829726,86567.0,86566.0,0.0247144]
[1741466432106,0.01829726,86567.0,86566.0,0.0257144]
[1741466433486,0.01829726,86567.0,86566.0,0.0141634]
[1741466442919,0.01829726,86567.0,86566.0,0.0257144]
[1741466446277,0.0208257,86572.0,86566.0,0.0257144]
[1741466446466,0.04194057,86572.0,86566.0,0.0257144]
[1741466446795,0.01812673,86567.0,86566.0,0.0257144]
[1741466446922,0.04194057,86572.0,86566.0,0.0257144]
[1741466447292,0.04194057,86572.0,86566.0,0.0247144]
[1741466447729,0.18055357,86572.0,86566.0,0.0247144]
[1741466447961,0.19210457,86572.0,86566.0,0.0237144]
[1741466449356,0.04194057,86572.0,86566.0,0.1623344]
[1741466449562,0.04194057,86572.0,86567.0,0.011551]